Cogmind - Beta 13 @@@ ROGUE MODE // 2024.04.14 @ 00:08:39 Player: GregoriusTechneticies Result: Destroyed by Y-54 Guardian with Gatling Laser Performance ------------- Evolutions (4) 2000 Regions Visited (7) 1400 Robots Destroyed (175) 875 Value Destroyed (3702) 3702 Prototype IDs (26) 520 Alien Tech Used (0) 0 Bonus (506) 506 TOTAL SCORE: 9003 Bonus ------- High Alert Combat Kills 355 Follower Combat Kills 7 Aligned with FarCom 300 Friendly Fire -156 Cogmind --------- Core Integrity 0/850 Matter 196/300 Energy 69/100 System Corruption 7% Temperature Cool (18) Movement Core (50) Location -6/Factory Parts ------- > --- POWER (2) -------- (None) > --- PROPULSION (3) --- (None) > --- UTILITY (6) ------ (None) > --- WEAPON (4) ------- Chainsword > --- INVENTORY (5) ---- Advanced Sensor Array Seismic Detector Target Analyzer Recoil Stabilizer Weapon Cycler Peak State ------------ > --- POWER ------------ Micro Nuclear Core Micro Nuclear Core > --- PROPULSION ------- Wheel Wheel > --- UTILITY ---------- Improved Heat Sink Large Storage Unit Advanced Targeting Computer Advanced Targeting Computer Shield Generator > --- WEAPON ----------- XL Autogun Array > --- INVENTORY -------- Micro Nuclear Core Wheel Structural Scanner Seismic Detector Shield Generator Shield Generator Decoy Drone Bay Light Assault Rifle Light Assault Rifle Rocket Launcher Mining Laser Hammer [Rating: 61] Favorites ----------- Power Micro Nuclear Core Engine Light Ion Engine Power Core Micro Nuclear Core Propulsion Wheel Wheel Wheel Utility Advanced Targeting Computer Device Shield Generator Storage Large Storage Unit Processor Advanced Targeting Computer Weapon XL Autogun Subcomponent Ballistic Gun XL Autogun Subcomponent Ballistic Cannon Advanced Assault Cannon Launcher Rocket Launcher Special Weapon Plasma Flamer Slashing Weapon Chainsword Build | -11 -10 -10 -10 -9 -8 -7 -6 ------- Run | Yrd Mat Min Exi Min Mat Fac Fac Slots Evolved 8 | . . . . . 4 2 2 Power 1 | . . . . . . 1 . Propulsion 1 | . . . . . . . 1 Utility 4 | . . . . . 2 1 1 Weapon 2 | . . . . . 2 . . Parts Attached 124 | 8 4 18 3 4 15 35 37 Power 20 | 1 1 2 . 1 3 5 7 Engine 6 | 1 1 2 . . . . 2 Core 14 | . . . . 1 3 5 5 Reactor . | . . . . . . . . Propulsion 39 | 2 2 9 2 1 3 12 8 Treads . | . . . . . . . . Leg . | . . . . . . . . Wheel 39 | 2 2 9 2 1 3 12 8 Hover . | . . . . . . . . Flight . | . . . . . . . . Utility 37 | 3 1 2 1 1 8 9 12 Device 24 | 2 . 1 . 1 7 5 8 Storage 8 | 1 1 1 1 . 1 1 2 Processor 5 | . . . . . . 3 2 Hackware . | . . . . . . . . Protection . | . . . . . . . . Artifact . | . . . . . . . . Weapon 28 | 2 . 5 . 1 1 9 10 Energy Gun . | . . . . . . . . Energy Cannon . | . . . . . . . . Ballistic Gun 20 | 2 . 4 . 1 1 8 4 Ballistic Cannon 1 | . . . . . . 1 . Launcher 1 | . . . . . . . 1 Special Weapon 1 | . . 1 . . . . . Impact Weapon . | . . . . . . . . Slashing Weapon 5 | . . . . . . . 5 Piercing Weapon . | . . . . . . . . Special Melee Weapon . | . . . . . . . . Unidentified Prototypes 3 | . . . . . 1 1 1 Parts Lost 36 | . 1 1 . . 1 7 26 Power 8 | . . . . . 1 1 6 Propulsion 9 | . 1 . . . . 2 6 Utility 9 | . . . . . . 2 7 Weapon 10 | . . 1 . . . 2 7 Highest Loss Streak 7 | . 1 1 . . 1 6 7 To Critical Strikes . | . . . . . . . . Average Slot Usage (%) 86 | . 98 95 100 100 68 87 80 Engine 5 | . 14 14 14 12 . . . Core 7 | . . . . 1 8 14 10 Wheel 17 | . 26 28 28 28 18 11 11 Device 13 | . 14 14 14 14 23 12 10 Storage 9 | . 14 14 14 14 9 7 6 Processor 9 | . . . . . . 15 19 Ballistic Gun 19 | . 28 23 28 28 9 21 12 Ballistic Cannon 1 | . . . . . . 1 3 Naked Turns 1 | . . . . . . . 1 Heaviest Build 99 | 13 18 29 26 28 55 50 99 Greatest Support 38 | 20 20 20 20 20 20 32 38 Greatest Overweight (x) 17 | 1 1 1 1 1 2 14 17 Average Overweight (x) 1 | . . . 1 1 1 1 1 Largest Inventory Capacity 25 | 8 10 15 15 15 15 15 25 Average Capacity 15 | 7 9 13 15 15 15 15 18 Most Carried 20 | 8 10 15 15 15 15 15 20 Average Carried 13 | 6 9 12 14 14 14 14 15 Final Capacity 15 | 8 10 15 15 15 15 15 5 Final Carried 15 | 8 10 15 15 15 15 15 5 Class Distribution -------------------- 35% | Gunner 31% | Scavenger-Mutant 18% | Mutant 5% | Scavenger-Skirmisher 5% | Scavenger-Gunner 3% | Skirmisher Dominant Class ---------------- Mutant | -10/Materials Scavenger-Mutant | -10/Mines Scavenger-Mutant | -10/Exiles Scavenger-Mutant | -9/Mines Scavenger-Skirmisher | -8/Materials Gunner | -7/Factory Gunner | -6/Factory Resources | -11 -10 -10 -10 -9 -8 -7 -6 ----------- Run | Yrd Mat Min Exi Min Mat Fac Fac Matter Collected 5555 | 424 329 499 40 66 930 1360 1907 Remotely 21 | . . . . . . . 21 Salvage Created 6040 | 323 370 605 . 58 1413 1568 1703 Parts 387 | 36 17 45 . 9 93 91 96 Haulers Intercepted 4 | . 1 . . . 2 1 . Recyclers Shooed 12 | . 2 3 . . 1 1 5 Parts Field Recycled . | . . . . . . . . Retrieved Matter . | . . . . . . . . Parts Self-Destructed . | . . . . . . . . Prevented . | . . . . . . . . Kills | -11 -10 -10 -10 -9 -8 -7 -6 ------- Run | Yrd Mat Min Exi Min Mat Fac Fac Combat Hostiles Destroyed 77 | . 2 10 . 3 21 16 25 Melee 3 | . . . . . . . 3 Guns 66 | . 2 10 . 3 21 14 16 Cannons 6 | . . . . . . 1 5 AOE 1 | . . . . . . . 1 Classes Destroyed 17 | 3 4 2 . . 5 1 2 Worker 25 | 4 1 5 . . . 10 5 Builder 29 | . 1 4 . . 7 8 9 Tunneler 11 | 9 . 1 . 1 . . . Hauler 4 | . 1 . . . 2 1 . Recycler 20 | 1 2 3 . . 3 8 3 Mechanic 3 | . 1 . . . 1 . 1 Drone 1 | . . . . . 1 . . Watcher 6 | . . . . . 3 1 2 Swarmer 32 | . . 4 . 3 5 11 9 Grunt 26 | . 2 5 . . 12 . 7 Brawler 1 | . . . . . . . 1 Duelist 1 | . . . . . 1 . . Sentry 4 | . . . . . 2 1 1 Demolisher 1 | . . 1 . . . . . Hunter 4 | . . . . . 1 . 3 Programmer 7 | . . . . . . 4 3 Heavy 1 | . . . . . . . 1 Best Kill Streak 12 | 4 5 5 . 3 12 10 10 Combat Bots Only 6 | . 2 3 . 3 6 4 5 Max Kills in Single Turn 2 | 2 1 1 . 1 2 2 2 Gunslinging . | . . . . . . . . Exploded 1 | . . . . . . . 1 Melee 1 | . . . . . . . 1 Uniques/NPCs Destroyed . | . . . . . . . . Combat | -11 -10 -10 -10 -9 -8 -7 -6 -------- Run | Yrd Mat Min Exi Min Mat Fac Fac Hostile Shots Fired 649 | . 13 40 . 13 59 149 375 Missed 209 | . 1 11 . 7 15 51 124 Damage Taken 6050 | . 173 405 . 52 824 1294 3302 Core 1575 | . 46 126 . . 272 275 856 Absorbed by Shields 374 | . . . . . 63 136 175 Core Remaining (%) 60 | 100 . . . 31 50 60 . Volleys Fired 363 | 24 29 69 . 8 63 68 102 Largest 4 | 2 2 2 . 2 1 4 4 Hottest 120 | 40 40 120 . 40 60 113 113 Shots Fired 844 | 48 58 105 . 16 64 243 310 Gun 757 | 48 58 104 . 16 64 233 234 Cannon 82 | . . . . . . 10 72 Launcher 4 | . . . . . . . 4 Special 1 | . . 1 . . . . . Kinetic 839 | 48 58 104 . 16 64 243 306 Thermal 1 | . . 1 . . . . . Explosive 4 | . . . . . . . 4 Electromagnetic . | . . . . . . . . Robot Hit Streak 27 | 4 5 10 . 2 9 27 20 Robot Miss Streak 8 | 2 2 5 . 2 8 4 7 Penetration Max 1 | . . . . . . . 1 Secondary Targets 1 | . . . . . . 1 . Max Gunslinging Chain 1 | . . . . . . 1 . Shots Hit Robots 525 | 22 32 73 . 8 59 141 190 Core Hits 255 | 15 15 31 . 5 51 57 81 Critical Kills 1 | . . . . . . . 1 Critical Parts Destroyed . | . . . . . . . . Critical Strikes 5 | . . . . . . 1 4 Destroy 1 | . . . . . . . 1 Blast 3 | . . . . . . 1 2 Sever 1 | . . . . . . . 1 Melee Attacks 22 | . . . . . . . 22 Impact . | . . . . . . . . Slashing 22 | . . . . . . . 22 Piercing . | . . . . . . . . Sneak Attacks 2 | . . . . . . . 2 Combat Hostiles . | . . . . . . . . Follow-up Attacks . | . . . . . . . . Damage Inflicted 11663 | 327 417 890 . 68 2522 2791 4648 Guns 10184 | 327 417 890 . 68 2466 2677 3339 Cannons 946 | . . . . . . 99 847 Explosions 125 | . . . . . 56 . 69 Melee 393 | . . . . . . . 393 Ramming 15 | . . . . . . 15 . Kinetic 11130 | 327 417 890 . 68 2466 2776 4186 Thermal 56 | . . . . . 56 . . Explosive 69 | . . . . . . . 69 Electromagnetic . | . . . . . . . . Impact . | . . . . . . . . Slashing 393 | . . . . . . . 393 Piercing . | . . . . . . . . Highest Corruption 7 | . . . . . 4 7 7 Average Corruption 4 | . . . . . 3 6 3 Corruption Purged . | . . . . . . . . Corruption Blocked . | . . . . . . . . Effects 48 | . . . . . 6 25 17 Message Errors 12 | . . . . . 2 6 4 Matter Fused 12 | . . . . . 2 3 7 Heat Flow Errors 4 | . . . . . . 4 . Energy Discharges 5 | . . . . . 1 2 2 Parts Rejected 1 | . . . . . . . 1 Data Loss (minor) 5 | . . . . . . 3 2 Data Loss (major) 4 | . . . . . . 3 1 Misfires 2 | . . . . . 1 1 . Weapon Failures 3 | . . . . . . 3 . Overload Shots . | . . . . . . . . Overflow Damage 78 | . . . . . 31 1 46 Projectiles 1 | . . . . . . 1 . Explosions 37 | . . . . . 31 . 6 Melee 40 | . . . . . . . 40 Knockbacks 8 | . . . . . . 1 7 Impact . | . . . . . . . . Kinetic 7 | . . . . . . 1 6 Secondary 1 | . . . . . . . 1 Self-Inflicted Damage 119 | . . . . . 74 6 39 Shots 2 | . . . . . 1 . 1 Rammed 8 | . . . . . . 8 . Targets Rammed 8 | . . . . . . 8 . Kicked . | . . . . . . . . Crushed . | . . . . . . . . Highest Temperature 666 | . 23 60 . . 666 455 351 Average Temperature 131 | . 7 17 . . 186 112 134 Received Heat Transfer 909 | . 111 144 . . 240 . 414 Effects 14 | . . . . . 5 7 2 Shutdowns 5 | . . . . . . 3 2 Interference 3 | . . . . . 1 2 . Damage (minor) 1 | . . . . . 1 . . Damage (major) 2 | . . . . . . 2 . Damage (core) 3 | . . . . . 3 . . Siege Activations . | . . . . . . . . Robots Corrupted . | . . . . . . . . Combat Hostiles . | . . . . . . . . Parts Fried 1 | . . . . . . 1 . Impact Corruptions 1 | . . . . . . 1 . Robots Melted . | . . . . . . . . Combat Hostiles . | . . . . . . . . Parts Melted . | . . . . . . . . Heat Transferred 50 | . . . . . 50 . . Parts Sabotaged . | . . . . . . . . Parts Stolen . | . . . . . . . . Parts Stripped . | . . . . . . . . Power Chain Reactions . | . . . . . . . . Alert | -11 -10 -10 -10 -9 -8 -7 -6 ------- Run | Yrd Mat Min Exi Min Mat Fac Fac Peak Influence 939 | 70 128 239 . 75 939 534 616 Initial 356 | . 45 49 . . 29 356 212 Average 305 | 40 93 154 . 71 530 399 368 Maximum Alert Level 3 | . . 1 . . 3 2 2 Low Security (%) 37 | 100 100 93 . 100 21 . 10 Level 1 28 | . . 6 . . 17 44 47 Level 2 29 | . . . . . 18 55 42 Level 3 4 | . . . . . 42 . . Level 4 . | . . . . . . . . Level 5 . | . . . . . . . . High Security . | . . . . . . . . Max Security . | . . . . . . . . Squads Dispatched 21 | . . . . . 6 3 12 Investigation . | . . . . . . . . Extermination 5 | . . . . . . 3 2 Reinforcement 10 | . . . . . 3 . 7 Assault 1 | . . . . . 1 . . Garrison 5 | . . . . . 2 . 3 Intercept . | . . . . . . . . Searches Triggered . | . . . . . . . . Construction Impeded 2 | . . . . . 1 . 1 Haulers Reinforced 1 | . . . . . . . 1 Active Scanning Responses . | . . . . . . . . Cargo Convoy Interrupts . | . . . . . . . . Stealth | -11 -10 -10 -10 -9 -8 -7 -6 --------- Run | Yrd Mat Min Exi Min Mat Fac Fac Distress Signals 7 | . 1 2 . . 2 . 2 Communications Jammed 4 | . . . . . . . 4 Distress Signals 1 | . . . . . . . 1 Times Spotted 131 | . 4 21 . 3 28 19 56 Peak Tracking Total 9 | . 3 5 . 3 9 5 5 Tactical Retreats 12 | . . 2 . . 1 . 9 Traps | -11 -10 -10 -10 -9 -8 -7 -6 ------- Run | Yrd Mat Min Exi Min Mat Fac Fac Traps Triggered 7 | . . . . . 3 2 2 Indirectly . | . . . . . . . . Trap Hack Attempts . | . . . . . . . . Triggered . | . . . . . . . . Disarmed . | . . . . . . . . Reprogrammed . | . . . . . . . . Reused . | . . . . . . . . Traps Extracted . | . . . . . . . . Installed . | . . . . . . . . Triggered . | . . . . . . . . Machines | -11 -10 -10 -10 -9 -8 -7 -6 ---------- Run | Yrd Mat Min Exi Min Mat Fac Fac Machines Disabled 9 | . . . . . 6 . 3 Max in Single Turn 2 | . . . . . 2 . 1 Garrison Access 1 | . . . . . 1 . . Machines Repaired . | . . . . . . . . Machines Dismantled . | . . . . . . . . Machines Sabotaged . | . . . . . . . . Overloaded Fab Kills . | . . . . . . . . Hacking | -11 -10 -10 -10 -9 -8 -7 -6 --------- Run | Yrd Mat Min Exi Min Mat Fac Fac Machines Accessed 8 | . 1 . 5 1 1 . . Terminals 2 | . 1 . . . 1 . . Fabricators . | . . . . . . . . Repair Stations . | . . . . . . . . Recycling Units . | . . . . . . . . Scanalyzers . | . . . . . . . . Garrison Access . | . . . . . . . . Total Hacks 60 | . 4 . 50 1 5 . . Successful 56 | . 2 . 50 1 3 . . Failed 4 | . 2 . . . 2 . . Catastrophic 1 | . 1 . . . . . . Database Lockouts . | . . . . . . . . Manual 10 | . 4 . 1 . 5 . . Terminals 9 | . 4 . . . 5 . . Fabricators . | . . . . . . . . Repair Stations . | . . . . . . . . Recycling Units . | . . . . . . . . Scanalyzers . | . . . . . . . . Garrison Access . | . . . . . . . . Terminal Hacks 52 | . . . 50 1 1 . . Record 49 | . . . 49 . . . . Open Door 1 | . . . . 1 . . . Terminal Index 1 | . . . . . 1 . . Derelict Proto ID Bank 1 | . . . 1 . . . . Fabricator Hacks . | . . . . . . . . Repair Station Hacks . | . . . . . . . . Recycling Unit Hacks . | . . . . . . . . Scanalyzer . | . . . . . . . . Garrison Access Hacks . | . . . . . . . . Unauthorized Hacks 4 | . 2 . . . 2 . . Terminals 4 | . 2 . . . 2 . . Assimilate 2 | . 1 . . . 1 . . Botnet 2 | . 1 . . . 1 . . Fabricators . | . . . . . . . . Repair Stations . | . . . . . . . . Recycling Units . | . . . . . . . . Scanalyzers . | . . . . . . . . Garrison Access . | . . . . . . . . Data Cores Recovered . | . . . . . . . . Used . | . . . . . . . . Hacking Detections 2 | . 1 . . . 1 . . Full Trace Events . | . . . . . . . . Feedback Events . | . . . . . . . . Feedback Blocked . | . . . . . . . . Robot Schematics Acquired . | . . . . . . . . Robots Built . | . . . . . . . . Authchips . | . . . . . . . . Time . | . . . . . . . . Total Robot Build Rating . | . . . . . . . . Part Schematics Acquired . | . . . . . . . . Parts Built . | . . . . . . . . Authchips . | . . . . . . . . Time . | . . . . . . . . Total Part Build Rating . | . . . . . . . . Parts Repaired . | . . . . . . . . Time . | . . . . . . . . Parts Recycled . | . . . . . . . . Recycled Matter . | . . . . . . . . Retrieved Matter . | . . . . . . . . Retrieved Components . | . . . . . . . . Parts Scanalyzed . | . . . . . . . . Part Schematics Acquired . | . . . . . . . . Parts Damaged . | . . . . . . . . Bothacking | -11 -10 -10 -10 -9 -8 -7 -6 ------------ Run | Yrd Mat Min Exi Min Mat Fac Fac Used RIF Installer . | . . . . . . . . Robots Hacked . | . . . . . . . . Non-combat . | . . . . . . . . Combat . | . . . . . . . . Robot Hacks Applied . | . . . . . . . . Relay Couplers Released 1 | . . . . . 1 . . Machine Destruction 1 | . . . . . 1 . . Fabnet Peak Effective % . | . . . . . . . . Robots Rewired . | . . . . . . . . Allies Hacked . | . . . . . . . . Hacks Repelled . | . . . . . . . . Allies | -11 -10 -10 -10 -9 -8 -7 -6 -------- Run | Yrd Mat Min Exi Min Mat Fac Fac Total Allies 1 | . . 1 . . . . . Largest Group 1 | . . 1 . . . . . Highest-Rated Group 31 | . . 31 . . . . . Highest-Rated Ally 31 | . . 31 . . . . . Total Orders . | . . . . . . . . Ally Attacks 8 | . . 8 . . . . . Total Damage 86 | . . 86 . . . . . Kills 1 | . . 1 . . . . . Allies Corrupted . | . . . . . . . . Allies Melted . | . . . . . . . . Intel | -11 -10 -10 -10 -9 -8 -7 -6 ------- Run | Yrd Mat Min Exi Min Mat Fac Fac Robot Analysis Total . | . . . . . . . . Derelict Logs Recovered 1 | . . 1 . . . . . Drone Launches 16 | . . . . . 2 . 14 Drone Recoveries . | . . . . . . . . Exploration | -11 -10 -10 -10 -9 -8 -7 -6 ------------- Run | Yrd Mat Min Exi Min Mat Fac Fac Turns Passed 5664 | 344 252 799 480 315 511 1258 1705 Spaces Moved 4052 | 163 181 548 498 270 377 839 1176 Core 15 | 1 . . . . . 12 2 Treads . | . . . . . . . . Legs . | . . . . . . . . Wheels 4037 | 162 181 548 498 270 377 827 1174 Hover . | . . . . . . . . Flight . | . . . . . . . . Fastest Speed 50 | 50 80 80 95 95 95 95 50 Average Speed 104 | 80 81 90 95 95 109 118 111 Slowest Speed 900 | 95 95 95 95 95 110 750 900 Overloaded Moves . | . . . . . . . . Propulsion Burnouts . | . . . . . . . . Robots Hopped . | . . . . . . . . Cave-ins Triggered . | . . . . . . . . Exploration Rate (%) 41 | 4 22 84 73 64 33 21 34 Regions Visited 7 Branch Regions 3 Pre-discovered Areas 1 | . . . 1 . . . . Known Exits Taken 1 | . . . . . . 1 . Unknown Exits Taken 6 | 1 1 1 1 1 1 . . Scrap Searched 1 | . . . . 1 . . . Spaces Dug 8 | . . . . . . 1 7 Terrain Destroyed 96 | . . . . . 65 3 28 Melee 7 | . . . . . . . 7 Projectile 66 | . . . . . 53 3 10 AOE 23 | . . . . . 12 . 11 Terrain Rammed . | . . . . . . . . Walls Destroyed . | . . . . . . . . Machines Disabled . | . . . . . . . . Actions | -11 -10 -10 -10 -9 -8 -7 -6 --------- Run | Yrd Mat Min Exi Min Mat Fac Fac Total 5059 | 334 232 751 508 318 482 1027 1407 Wait 278 | 115 . 92 . 30 1 11 29 Move 4045 | 162 180 547 497 269 376 838 1176 Hop . | . . . . . . . . Pick Up 97 | 17 9 9 2 2 12 21 25 Fast Attach 23 | 6 1 3 . . . 11 2 Attach 37 | 1 . . . . 5 6 25 Detach 6 | . . . . . . 2 4 Swap 64 | 1 3 15 3 4 10 18 10 Drop 100 | 8 10 16 6 5 15 28 12 Fire 363 | 24 29 69 . 8 63 68 102 Melee 22 | . . . . . . . 22 Ram 8 | . . . . . . 8 . Kick . | . . . . . . . . Crush . | . . . . . . . . Escape Stasis 16 | . . . . . . 16 . Rewire . | . . . . . . . . Trap . | . . . . . . . . Miscellaneous . | . . . . . . . . Route ------- -11/Scrapyard -10/Materials -10/Mines -10/Exiles -9/Mines -8/Materials -7/Factory -6/Factory History --------- Turn | Location | Event 15 | -11/Scrapyard | Discovered new exit (range 15) 345 | -11/Scrapyard | Entered Materials 388 | -10/Materials | Build established: Mutant 581 | -10/Materials | Discovered new exit (range 5) 597 | -10/Materials | Entered Mines 598 | -10/Mines | Assembled infested the area 807 | -10/Mines | Build established: Scavenger-Mutant 1052 | -10/Mines | Core integrity fell below 50% 1114 | -10/Mines | Escorted by a lone wolf Derelict 1167 | -10/Mines | A weapon hastily lodged in a ceiling crevice suddenly fell to the ground 1368 | -10/Mines | Received a Rocket Launcher from a helpful Derelict 1392 | -10/Mines | Deemed a non-threat by the Exiles lab entrance 1392 | -10/Mines | Discovered new exit (range 5) 1396 | -10/Mines | Entered Exiles 1421 | -10/Exiles | Met 8R-AWN 1437 | -10/Exiles | Met EX-HEX 1474 | -10/Exiles | Met EX-DEC 1481 | -10/Exiles | Learned location of Zion (-6) 1511 | -10/Exiles | Met EX-BIN 1524 | -10/Exiles | Aligned with FarCom system 1525 | -10/Exiles | Given EX-Vault access code 1576 | -10/Exiles | Opened EX-Vault 1586 | -10/Exiles | Found XL Autogun Array 1614 | -10/Exiles | Warned to stay clear of 0b10 Research branches 1711 | -10/Exiles | Discovered new exit (range 14) 1876 | -10/Exiles | Left Exiles lab with XL Autogun Array 1876 | -10/Exiles | Entered Mines 2155 | -9/Mines | Found the Drone Emporium 2161 | -9/Mines | Found Prototype Device 2177 | -9/Mines | Discovered new exit (range 15) 2191 | -9/Mines | Entered Materials 2191 | -8/Materials | Evolved 4 slots: Utility x2, Weapon x2 2199 | -8/Materials | Identified Decoy Drone Bay 2289 | -8/Materials | Garrison activated, responded to threat 2497 | -8/Materials | Build established: Scavenger-Skirmisher 2683 | -8/Materials | Discovered new exit (range 6) 2702 | -8/Materials | Entered Factory 2702 | -7/Factory | Evolved 2 slots: Power x1, Utility x1 3087 | -7/Factory | Lost 6 parts (1p2n2u1w) 3443 | -7/Factory | Build established: Scavenger-Gunner 3762 | -7/Factory | Build established: Gunner 3954 | -7/Factory | Discovered new exit (range 5) 3960 | -7/Factory | Identified exit to Factory 3960 | -7/Factory | Entered another Factory area 3960 | -6/Factory | Evolved 2 slots: Propulsion x1, Utility x1 4946 | -6/Factory | Garrison activated, responded to threat 5104 | -6/Factory | Lost 7 parts (1p2n1u3w) 5148 | -6/Factory | Lost 14 allies 5322 | -6/Factory | Build established: Mutant 5420 | -6/Factory | Core integrity fell below 50% 5483 | -6/Factory | Lost 3 parts (1p1n1u) 5583 | -6/Factory | Lost 5 parts (1p2n1u1w) 5657 | -6/Factory | Core integrity fell below 20% 5664 | -6/Factory | Released all parts (5) 5665 | -6/Factory | Destroyed by Y-54 Guardian with Gatling Laser Last Messages --------------- 05655_ U-05 Engineer lays Concrete. 05658_ Penetrated by Slug. 05659_ U-05 Engineer lays Concrete. 05659_ Critical hit (Burn: +37). 05659_ Wheel destroyed. 05660_ U-05 Engineer lays Concrete. 05661_ 7Q OFY8ZMX WWXX,OWDKT2H RILLIU561JII 05661_ Target Analyzer destroyed. 05661_ U-05 Engineer lays Concrete. 05662_ Sneak attack on U-05 Engineer. 05662_ Destroyed Wheel. 05662_ Structural Scanner destroyed. 05662_ Lgt. Nuclear Core destroyed. 05664_ Released ECM Suite. 05664_ Released Adv. Targeting Computer. 05664_ Released Targeting Computer. 05664_ Released Huge Storage Unit. 05664_ Released Chainsword. 05665_ Penetrated by Slug. 05665_ Acquired Chainsword. Map ----- +----------------------------------------------------+ | ????????# """ """ # #??????# % ########??????? | | ????????# """ """ # #####??# % # """ #??????? | | ????????#"" # # ?# % #! """ #??????? | | ????????#"" # # """"?# %%# """ #??????? | | ????????#"T # # ""F" # #! #??????? | | ????????#"" # # "" # % # ! #??????? | | ????????#"" # # +% %+ #??????? | | ????????# #=# ! # ##+########??????? | | ????????######+#######%######## # %%= #?????????? | | ?????????????# #?????# ! + #?????????? | | ?????????????# #?????# #""" #?????????? | | ?????????????# #?????# !! #""" #?????????? | | ?????????????# #?????# ! #""" #?????????? | | ?????????????# #?????# # #?????????? | | ?????????????# #????## #####+##?????????? | | ?????????????# #????## ""T"" ###?# #??????????? | | ????????????## ##???## """ # #?# #??????????? | | #+########### ###### ##### #??????????? | | ! % #??????????? | | ######### ###### ################??????????? | | #???????#####???## ##################????????? | | #???????????????## ##################????????? | | #??????????????### % ????????? | | ################## !/! % ????????? | | ################# !!! % ????????? | | # ### !!@ % ####?## ??????? | | # #### g/ # ??????? | | "" # """"""" ### Y %# # " # ??????? | | "" # """"""" #### u # # ???????????? | | "" # """"" # # # ?????????????? | | # """""" # "" #h # ?????????????? | | "" # # """ # # #g???????????? | | "" # " "" # "T + + ???????????? | | "" / """"" # """ # ### ???????????? | | # """"""" # "" ## %# # ???????????? | | # """"""" # ## ????????????? | | # ####+### ????????????? | | #+#########+######### ### ???????????? | | # ### ### ???????????? | | # """???## ### ???????????? | | "" """ # """ ### ##? ????????????? | | "" """ # """ # ? ????????????? | | "" """ # # ?? ?????????????? | | # [= + ?? ?????????????? | | "" """ # [ [= ??? ??#####+####??????????????? | | "" """ # =] ?? ??#### ??????????????? | | "" """ ? # ?? ??????????????????????????? | | ??? ##+##+###?? ??????????????????????????? | | ####????### ###?? ??????????????????????????? | | #??????? ???? ??????????????????????????? | +----------------------------------------------------+ Best States ------------- Heat Dissipation 48 Energy Generation 28 Energy Capacity 210 Matter Stores 400 Matter Capacity 400 Sight Range 16 Terrain Scan Density 10 ECM Strength 1 Jamming Range 12 Weapon Cycling 15 Evasion (%) 44 Targeting Accuracy 21 Target Analysis 5 Item Schematics ----------------- None Robot Schematics ------------------ None Fabricated ------------ Nothing Alien Tech Used ----------------- None Achievements -------------- Backstab Release The Drones! Challenges ------------ None Game ------ Seed FortressPowerMembrane Manual? 0 Play Time 01:26:46 Cumulative 29.5 hours Start 2024.04.13 @ 22:36:32 End 2024.04.14 @ 00:08:39 Sessions 1 Manual Loads 0 Difficulty Rogue Special Mode None Game No. 39 Rogue 24 Adventurer 0 Explorer 15 Win Type - Total 0 Types 0/0/0/0/0/0/0/0/0 Lore% 18 Gallery% 29 Achievement% 21 Wizard Run 0 Options --------- Layout 1 ASCII 0 Keyboard 0 Movement Mouse Keybinds 0 Fullscreen 1 Font 24/Smallcaps Map View 50x35 Zoom Use 0% Tactical HUD 1 Map Filters NONE Filters NONE Steam 1 RUN: f24c2ec3-6cac-44b4-9ee4-d3c8e69378dd